{"text_format":"3","workbook":"xlsx","n_sheets":3,"sheets":["Pricing Schedule","Sheet2","Sheet3"],"not_rendered":{"defined_names":1},"read":"whole","date_system":"1900"}

{"sheet":"Pricing Schedule","index":0,"n_rows":173,"n_cols":5,"rows_kept":173,"merged":[[7,0,8,0],[7,1,8,1],[7,2,8,2],[7,3,8,3],[7,4,8,4]]}
["ANNEXURE C: PRICING SCHEDULE "]
[]
["Prices to include VAT"]
["Delivery costs not to be included in cost and msut be quoted separately for each order"]
["Where an item is unavailable/discontinued please quote on an equivalent item - provide the description/name and code of the equivalent item where applicable. "]
["The bidder is to clearly indicate where items have been replaced with an equivalent."]
["Items listed below and quantities listed below are for evaluation/comparison of bids only - final items and quantities will be determined by business need during the contract period. "]
["No. ","Product /Description","Estimated Quantities","Unit Price Including VAT.","Total Price (Incl VAT) "]
[]
[1,"Boxes Long Life Full Cream Milk 1L (6 pack)",20,null,{"$f":"+D10*C10","v":0}]
[2,"1.5KG RICOFFY INSTANT",2,null,{"$f":"+D11*C11","v":0}]
[3,"1.5kg Nescafe",1,null,0]
[4,"Pack Five Roses Tagless Teabags",4,null,0]
[5,"Box Brown Sugar 2,5Kg (Sachets)",2,null,0]
[6,"Box White Sugar (Sachets)",2,null,0]
[7,"Pack FreshPak Rooibos Teabags",4,null,0]
[8,"Packaging Bags Industrial 20x30 100mic 100pk",10,null,0]
[9,"Pack Refuse Bags Heavy Duty",4,null,0]
[10,"IND BAG 300X0450-100MIC",10,null,0]
[11,"HARDWARE BAG-200x300mm*50MIC/1000",10,null,0]
[12,"Trolley bin liners",5,null,0]
[13,"Swingbin liners 20micron 600mm x 750mm",5,null,0]
[14,"5L Hand sanitizers",4,null,0]
[15,"Finish D/Washer Powder Regular (1 x 2.5kg)",10,null,0]
[16,"Tile cleaner",2,null,0]
[17,"Doom",10,null,0]
[18,"Pack Windolene Window Cleaner Trigger 750ml",2,null,0]
[19,"Sunlight Liquid 2L",2,null,0]
[20,"Pine Gel 5L",2,null,0]
[21,"Bottle Mr. Min Furniture Polish 300ml",5,null,0]
[22,"XTREEM BLEACH 5 LITRE",2,null,0]
[23,"Handy Andy Cleaning Product 5L",4,null,0]
[24,"Bottle Airoma Air Freshener Assorted 210ml",10,null,0]
[25,"Urinal Perfume Blocks (Deo Blocks) 5L",2,null,0]
[26,"Omo Auto 5Kg",1,null,0]
[27,"Hand soap",10,null,0]
[28,"COMPUTACARE CLEANING WET WIPES (TUB 100)",2,null,0]
[29,"Pack non-scratch scourers",2,null,0]
[30,"Cleaner Cloth Dish Honeycomb Addis 2Pk",1,null,0]
[31,"Sponge Scourers Addis Jumbo 4PK",2,null,0]
[32,"Pack Cleaning Cloth Swabs",1,null,0]
[33,"Heavy duty scourers",5,null,0]
[34,"TIS. JUMBO/WIP. 200MMX1500MM",10,null,0]
[35,"Cleaner Bucket Addis 12L",1,null,0]
[36,"Bottle brush",1,null,0]
[37,"Dustpan and brush set",1,null,0]
[38,"Duster",1,null,0]
[39,"Broom",1,null,0]
[40,"Mop",1,null,0]
[41,"Toilet Brush set",1,null,0]
[42,"50G BOSTIK PRESTIK",1,null,0]
[43,"A4 CROXLEY NOTEBOOKS SIDE-BOUND FEINT & MARGIN ",1,null,0]
[44,"3M Post-It Neon Notes, 38mmx50mm",1,null,0]
[45,"TWR3213 TOWER WHITE ROLL LABELS 32MMX13MM",30,null,0]
[46,"TWR4513 TOWER - WHITE ROLL LABELS",30,null,0]
[47,"TW100100S Tower labels W100 (A4 70x37, 24 up)",1,null,0]
[48,"Tidy files Ref: 015000 white Alphabetical tabs",1,null,0]
[49,"Tags Buff Treeline No5 121x60mm",2,null,0]
[50,"TWINE, NO.309 - 4MMx500G",2,null,0]
[51,"Flipchart Pad Bond 30Pk",1,null,0]
[52,"RUL1414 CROXLEY SHATTERPROOF RULERS 30CM CLEAR",1,null,0]
[53,"BANTEX - A4 POLYPROPYLENE LEVER ARCH FILES - 70mm. (various colors)",10,null,0]
[54,"Boards A4 Butterfly 160g Pastel Blue 100Sht",1,null,0]
[55,"Boards A4 Butterfly 160g Pastel Green 100Sht",1,null,0]
[56,"Boards A4 Butterfly 160g Pastel Pink 100Sht",1,null,0]
[57,"Boards A4 Butterfly 160g Pastel Purple 100Sht",1,null,0]
[58,"FOL811902 DONAU BRIGHT BOARD FOLDERS (FOOLSCAP) BLUE (pack)",1,null,0]
[59,"FOL811905 DONAU BRIGHT BOARD FOLDERS (FOOLSCAP) GREEN (pack)",1,null,0]
[60,"FOL811907 DONAU BRIGHT BOARD FOLDERS (FOOLSCAP) PINK (pack)",1,null,0]
[61,"File Suspension Bantex Foolscap Blue 25PK",1,null,0]
[62,"CASIO FX82ZA PLUS CALCULATOR (BLACK)",1,null,0]
[63,"STAPLER, FULL STRIP, METAL",1,null,0]
[64,"Highlighters various colors wallet 4",2,null,0]
[65,"Binding Comb GBC Plastic 21 Loop 45mm Black 100Pk",1,null,0]
[66,"Binding Comb GBC Plastic 21 Loop 25mm Black 100Pk",1,null,0]
[67,"Eraser Whiteboard Parrot Non-Magnetic 95x50mm",1,null,0]
[68,"FELLOWES - ANTIBACTERIAL SURFACE CLEANING WIPES",5,null,0]
[69,"Cleaner Fluid Whiteboard Parrot 250ml",2,null,0]
[70,"Desk Tidy Round Up Plastic Blue",1,null,0]
[71,"Calendar Desk Pad",5,null,0]
[72,"Letter Tray Plastic Navy Blue",1,null,0]
[73,"Staple Remover Rexel Sola",1,null,0]
[74,"Scissors 210mm",1,null,0]
[75,"AAA batteries",10,null,0]
[76,"ENMA27BP1 ENERGIZER BATTERIES 12V (pack of 1)",5,null,0]
[77,"DURACELL BATTERIES AA (PACK OF 6)",1,null,0]
[78,"Binding Cover GBC Frosted180mic Clear 100Pk",1,null,0]
[79,"A4 White Paper (500 sheets)",10,null,0]
[80,"AA Duracell Batteries ",10,null,0]
[81,"Lever Arch Files (Purple/Lavender Colors)",5,null,0]
[82,"Self-Adhesive A4 labels 10 Sheets",1,null,0]
[83,"Dove cotton wool roll 100g",2,null,0]
[84,"The heavy-duty stapler 210 sheet",1,null,0]
[85,"Clear Packaging Tapes (48mm x 100m)",3,null,0]
[86,"520591 EK70 Bullet Point (Black) Permanent Markers ",10,null,0]
[87,"Office Accessories Multicolored Plastic Push Pins (50 Pack)",1,null,0]
[88,"Pack BIC Click Medium Black Pens",10,null,0]
[89,"Pack BIC Orange Fine Ball Pens",10,null,0]
[90,"DES0075 LETTER TRAY RISERS",2,null,0]
[91,"1 box ENP98SEM C4 CROXLEY ENVELOPES SEAL EASI OPAQUE (WHITE)",1,null,0]
[92,"1 box ENP95SEC C5 CROXLEY ENVELOPES SEAL EASI OPAQUE (WHITE)",1,null,0]
[93,"TW106100S TOWER LABELS A4 210X297 (1 UP)",1,null,0]
[94,"50MM PAPER CLIPS (SILVER TUB 100)",1,null,0]
[95,"Rexel Staples No. 56 (X5000)",2,null,0]
[96,"10M Heavy duty extension cord (Black) ",1,null,0]
[97,"5M Heavy duty extension cord (Black)    ",1,null,0]
[98,"3M Heavy duty extension cord (Black)  ",1,null,0]
[99,"FELLOWES-PREMIUM MOUSEPAD, BLACK",2,null,0]
[100,"BIG CHIC MEDIUM BLACK PENS (BOX OF 60)","12 boxes"]
[101,"BIG CHIC MEDIUM BLUE PENS (BOX OF 60)","12 boxes"]
[102,"BIG CHIC MEDIUM RED PENS (BOX OF 60)","4 boxes"]
[103,"MARKER PERMANENT ARTLINE BLACK 70 (pack of 12)","10 boxes"]
[104,"UNIBALL PENS (pack of 12)","10 boxes"]
[105,"HIGHLIGHTERS - MULTICOLOURS (pack of 5)","10 boxes"]
[106,"WHITEBOARD MARKERS (RED) (pack of 10)","4 boxes"]
[107,"WHITEBOARD MARKERS (BLUE) (pack of 10)","4 boxes"]
[108,"WHITEBOARD MARKERS (GREEN) (pack of 10)","4 boxes"]
[109,"WHITEBOARD MARKERS (BLACK) (pack of 10)","6 boxes"]
[110,"INDIAN TAGS - 152MM","40 boxes"]
[111,"INDIAN TAGS - 76MM","40 boxes"]
[112,"STAPLES 26/6","100 boxes"]
[113,"STAPLES 23/13(1000 per box)","3 boxes"]
[114,"SMALL STAPLER",30,null,0]
[115,"SMALL PUNCHER",30,null,0]
[116,"BIG STAPLER",2,null,0]
[117,"BIG PUNCHER",2,null,0]
[118,"CLEAR PACKING TAPE  (45X50mm)","100 rolls"]
[119,"RUBBER BANDS - SIZE 38","200 boxes"]
[120,"ARCH LEVER FILES","200 files"]
[121,"A4 10TAB DIVDERS RAINBOW POLYPROP (pack of 10)","150 packs"]
[122,"SCISSORS",15,null,0]
[123,"PRITT 40g",10,null,0]
[124,"BOSTIK PRESTIK",5,null,0]
[125,"RED FINGERETTES-SIZE 00 (pack of 10)",5,null,0]
[126,"GREEN FINGERETTES - SIZE 0 (pack of 10)",4,null,0]
[127,"BLUE FINGERETTES - SIZE 1 (pack of 10)",4,null,0]
[128,"YELLOW FINGERETTES - SIZE 2 (pack of 10)",4,null,0]
[129,"WALTONS Prime Line Large Calculator desktop 12-digit",50,null,0]
[130,"A4 FILLING POCKETS (PACK OF 50)",6,null,0]
[131,"POST IT STICKY NOTES (pack of 5)",30,null,0]
[132,"BANTEX MEMO PAPER CUBE REFILLS BOND PAPER RAINBOW COLOURS",20,null,0]
[133,"SAD DIARY PADDED PASTEL COLOURS PAG-A-DAY PERIMETER STITCHED A4 297MMX210MM",10,null,{"$f":"+D142*C142","v":0}]
[134,"C4 WHITE ENVELOPES (BOX OF 500)","3 boxes"]
[135,"DL - B WHITE 80 SEAL EASI ENVELOPES - box of 100","2 boxes"]
[136,"FLIP CHART A1 SIZE (pack of 5)",4]
[137,"PAPER CLIPS - 50mm","20 boxes"]
[138,"PAPER CLIPS - 33mm","20 boxes"]
[139,"HARD COVER A4 1QUARE",5]
[140,"RULER",10]
[141,"PENCILS",10]
[142,"ERASER",10]
[143,"SHARPNERS",10]
[144,"ACCESSIBLE FILES - BLUE (PACK OF 4)",50]
[145,"SUSPENSION FILE (pack of 25)",4]
[146,"DURACELL BATTERY AAA (pack of 4)",30]
[147,"DURACELL BATTERY AA",30]
[148,"PRINTING PAPERS A4 (5reams in a box)","40 boxes"]
[149,"STAPLE REMOVER",10]
[150,"PLASTIC DISAFIX ROLLS - 450x10","4 rolls"]
[151,"YELLOW PAPER DIVIDERS - (pack of 10)","10 packs"]
[152,"LAMINATING POUCHES A3 - 150 MICRON - 100 POUCHES","4 packs"]
[153,"LAMINATING POUCHES A4 - 150 MICRON - 100 POUCHES","4 packs"]
[154,"LAMINATING POUCHES A4 - 150 MICRON - 100 POUCHES",null,null,0]
[155,{"$nulls":3},0]
[156,{"$nulls":3},0]
[157,{"$nulls":3},0]
[]
[]
[null,"BIDDER’S NAME: _______________________________________________"]
[]
[null,"AUTHORISED SIGNATORY: ______________________________________"]
[]
[null,"DATE: _____________________"]

{"sheet":"Sheet2","index":1,"n_rows":77,"n_cols":2,"rows_kept":77,"hidden":true}
["Black pens fine point and click","Box of 50 "]
["Blue pens fine point and click","Box of 50"]
["Red pens fine point and click","Box of 50"]
["Marlin Ultra Glide pen 0.7","Pack of 5"]
["Ruler","Each"]
["Eraser","Each"]
["Pencil","Box of 50"]
["Stapler","Each"]
["Staples 26/6","Box"]
["Staple Remover","Each"]
["Blue ink","Each"]
["Black ink","Each"]
["Red ink","Each"]
["Highlighters","Pack of 10"]
["Pritt","Each"]
["Pre stick","Each"]
["Calculator","Each"]
["White board markers assorted colours","Pack of 10"]
["Cube refill","Each"]
["Sticky notes/ yellow post it ","Pack of 6"]
["Thick clear tape","Each"]
["Scissors","Each"]
["Manilla Folder 100 sheets  yellow","100 Sheets pack"]
["Manilla Folder 100 sheets  green","100 Sheets pack"]
["Laminating A4 pouch 150 mic","Pack of 10"]
[" A4 PVS plastic sleeves 100 per pack","Pack of 100"]
["PVC File dividers A-Z or 1-10","Pack"]
["Lever arch file 70mm and 40mm polyprop","Each"]
["Clear packaging tape ","Each"]
["Brown buffer tape to seal samples sen to lab","Each"]
["3m heavy duty tape mounting","Each"]
["Liquid to clean whiteboard","Each"]
["Pouch for id cards","237 ml each"]
["AAA duracell batteries","Pack of 12"]
["AA duracel batteries","Pack of 12"]
["File fasteners","Pack of 50"]
["Elastic bands","100g"]
["Finger cone various sizes","Pack of 10"]
["Gel pen","Box of 40"]
["Diaries A4 and A5 annual","Each"]
["Masonite clip board","Each"]
["Photocopy paper","Box of 5 reams (500 sheets)"]
[]
["Tippex","Each"]
["Punch Large and small","Each"]
["Large stapler","Each"]
["Staples for large stapler","Box"]
["Pen organizer  holders","Each"]
["Optiplan Folder 440 H/W with flaps","Pack"]
["Pushpin","box"]
["Waste Paper bin-wire","Each"]
["Notice Board","Each"]
["Frames A4","Each"]
["Sorter A-Z","Each"]
["Optiplan Plastic container / holders for Files","Each"]
["Brother barcoded labels","Roll"]
["Small and large ink pads","Each"]
["Selfinking stamps – date stamp","each"]
["Selfinking stamps – passed for export stamp","Each"]
["Selfinking stamps – reject stamp","each"]
["Selfinking stamps – personnel nr stamp","each"]
["Selfinking stamps","each"]
["Selfinking stamp ink – red - stampwell","each"]
["Selfinking stamp ink – blue - stampwell","each"]
["Selfinking stamp ink – black - stampwell","each"]
["Bic clic ballpoint pen medium - black","each"]
["Bic clic ballpoint pen medium - blue","each"]
["Bic ballpoint office pen medium Waltons – red","each"]
["A4 Rotatrim copy paper – 5 reams in box","Box of 5 reams (500 sheets)"]
[]
["Manilla folders – blue","Pack of 100 sheets"]
["Paperclips – king size wavy","Box of 100"]
["Paperclips – giant","Box of 100"]
["EK700 Fine Permanent marker","each"]
["EK70 Bullet point permanent marker","each"]
["Flip file display book (different pocket sizes)","each"]
["Metal file fasteners","Box of 50"]

{"sheet":"Sheet3","index":2,"n_rows":84,"n_cols":10,"rows_kept":84,"hidden":true,"merged":[[1,1,1,5],[4,1,4,3],[5,1,5,3],[7,1,8,1],[7,2,8,2],[7,3,8,3],[7,4,7,5],[7,6,7,7],[7,8,7,9],[74,1,74,5],[77,1,77,5],[78,1,78,5],[79,1,79,5],[81,1,81,5],[82,1,82,5],[83,1,83,5]]}
[]
[null,"ANNEXURE A: PRICING SCHEDULE "]
[null,"RFP/OPSLAB/CHEM/2021/05"]
[]
[null,"FOREX % of the total price per unit ",null,null,"%"]
[null,"NON- FOREX % of the total price per unit ",null,null,"%"]
[]
[null,"Product Description ","Unit of Measure (UOM)","Quantity","Year 1",null,"Year 2",null,"Year 3"]
[{"$nulls":4},"Unit price Including VAT. ","Total Price VAT Incl.","Unit price Including VAT. ","Total Price VAT Incl.","Unit price Including VAT. ","Total Price VAT Incl."]
[null,{"$f":"Sheet2!A1","v":"Black pens fine point and click"},{"$f":"Sheet2!B1","v":"Box of 50 "},1,null,{"$f":"D10*E10","v":{"v":0,"d":"R 0.00"}},null,{"$f":"D10*G10","v":{"v":0,"d":"R 0.00"}},null,{"$f":"D10*I10","v":{"v":0,"d":"R 0.00"}}]
[null,{"$f":"Sheet2!A2","v":"Blue pens fine point and click"},{"$f":"Sheet2!B2","v":"Box of 50"},1,null,{"$f":"D11*E11","v":{"v":0,"d":"R 0.00"}},null,{"$f":"D11*G11","v":{"v":0,"d":"R 0.00"}},null,{"$f":"D11*I11","v":{"v":0,"d":"R 0.00"}}]
[null,{"$f":"Sheet2!A3","v":"Red pens fine point and click"},{"$f":"Sheet2!B3","v":"Box of 50"},1,null,{"v":0,"d":"R 0.00"},null,{"v":0,"d":"R 0.00"},null,{"v":0,"d":"R 0.00"}]
[null,{"$f":"Sheet2!A4","v":"Marlin Ultra Glide pen 0.7"},{"$f":"Sheet2!B4","v":"Pack of 5"},1,null,{"v":0,"d":"R 0.00"},null,{"v":0,"d":"R 0.00"},null,{"v":0,"d":"R 0.00"}]
[null,{"$f":"Sheet2!A5","v":"Ruler"},{"$f":"Sheet2!B5","v":"Each"},1,null,{"v":0,"d":"R 0.00"},null,{"v":0,"d":"R 0.00"},null,{"v":0,"d":"R 0.00"}]
[null,{"$f":"Sheet2!A6","v":"Eraser"},{"$f":"Sheet2!B6","v":"Each"},1,null,{"v":0,"d":"R 0.00"},null,{"v":0,"d":"R 0.00"},null,{"v":0,"d":"R 0.00"}]
[null,{"$f":"Sheet2!A7","v":"Pencil"},{"$f":"Sheet2!B7","v":"Box of 50"},1,null,{"v":0,"d":"R 0.00"},null,{"v":0,"d":"R 0.00"},null,{"v":0,"d":"R 0.00"}]
[null,{"$f":"Sheet2!A8","v":"Stapler"},{"$f":"Sheet2!B8","v":"Each"},1,null,{"v":0,"d":"R 0.00"},null,{"v":0,"d":"R 0.00"},null,{"v":0,"d":"R 0.00"}]
[null,{"$f":"Sheet2!A9","v":"Staples 26/6"},{"$f":"Sheet2!B9","v":"Box"},1,null,{"v":0,"d":"R 0.00"},null,{"v":0,"d":"R 0.00"},null,{"v":0,"d":"R 0.00"}]
[null,{"$f":"Sheet2!A10","v":"Staple Remover"},{"$f":"Sheet2!B10","v":"Each"},1,null,{"v":0,"d":"R 0.00"},null,{"v":0,"d":"R 0.00"},null,{"v":0,"d":"R 0.00"}]
[null,{"$f":"Sheet2!A11","v":"Blue ink"},{"$f":"Sheet2!B11","v":"Each"},1,null,{"v":0,"d":"R 0.00"},null,{"v":0,"d":"R 0.00"},null,{"v":0,"d":"R 0.00"}]
[null,{"$f":"Sheet2!A12","v":"Black ink"},{"$f":"Sheet2!B12","v":"Each"},1,null,{"v":0,"d":"R 0.00"},null,{"v":0,"d":"R 0.00"},null,{"v":0,"d":"R 0.00"}]
[null,{"$f":"Sheet2!A13","v":"Red ink"},{"$f":"Sheet2!B13","v":"Each"},1,null,{"v":0,"d":"R 0.00"},null,{"v":0,"d":"R 0.00"},null,{"v":0,"d":"R 0.00"}]
[null,{"$f":"Sheet2!A14","v":"Highlighters"},{"$f":"Sheet2!B14","v":"Pack of 10"},1,null,{"v":0,"d":"R 0.00"},null,{"v":0,"d":"R 0.00"},null,{"v":0,"d":"R 0.00"}]
[null,{"$f":"Sheet2!A15","v":"Pritt"},{"$f":"Sheet2!B15","v":"Each"},1,null,{"v":0,"d":"R 0.00"},null,{"v":0,"d":"R 0.00"},null,{"v":0,"d":"R 0.00"}]
[null,{"$f":"Sheet2!A16","v":"Pre stick"},{"$f":"Sheet2!B16","v":"Each"},1,null,{"v":0,"d":"R 0.00"},null,{"v":0,"d":"R 0.00"},null,{"v":0,"d":"R 0.00"}]
[null,{"$f":"Sheet2!A17","v":"Calculator"},{"$f":"Sheet2!B17","v":"Each"},1,null,{"v":0,"d":"R 0.00"},null,{"v":0,"d":"R 0.00"},null,{"v":0,"d":"R 0.00"}]
[null,{"$f":"Sheet2!A18","v":"White board markers assorted colours"},{"$f":"Sheet2!B18","v":"Pack of 10"},1,null,{"v":0,"d":"R 0.00"},null,{"v":0,"d":"R 0.00"},null,{"v":0,"d":"R 0.00"}]
[null,{"$f":"Sheet2!A19","v":"Cube refill"},{"$f":"Sheet2!B19","v":"Each"},1,null,{"v":0,"d":"R 0.00"},null,{"v":0,"d":"R 0.00"},null,{"v":0,"d":"R 0.00"}]
[null,{"$f":"Sheet2!A20","v":"Sticky notes/ yellow post it "},{"$f":"Sheet2!B20","v":"Pack of 6"},1,null,{"v":0,"d":"R 0.00"},null,{"v":0,"d":"R 0.00"},null,{"v":0,"d":"R 0.00"}]
[null,{"$f":"Sheet2!A21","v":"Thick clear tape"},{"$f":"Sheet2!B21","v":"Each"},1,null,{"v":0,"d":"R 0.00"},null,{"v":0,"d":"R 0.00"},null,{"v":0,"d":"R 0.00"}]
[null,{"$f":"Sheet2!A22","v":"Scissors"},{"$f":"Sheet2!B22","v":"Each"},1,null,{"v":0,"d":"R 0.00"},null,{"v":0,"d":"R 0.00"},null,{"v":0,"d":"R 0.00"}]
[null,{"$f":"Sheet2!A23","v":"Manilla Folder 100 sheets  yellow"},{"$f":"Sheet2!B23","v":"100 Sheets pack"},1,null,{"v":0,"d":"R 0.00"},null,{"v":0,"d":"R 0.00"},null,{"v":0,"d":"R 0.00"}]
[null,{"$f":"Sheet2!A24","v":"Manilla Folder 100 sheets  green"},{"$f":"Sheet2!B24","v":"100 Sheets pack"},1,null,{"v":0,"d":"R 0.00"},null,{"v":0,"d":"R 0.00"},null,{"v":0,"d":"R 0.00"}]
[null,{"$f":"Sheet2!A25","v":"Laminating A4 pouch 150 mic"},{"$f":"Sheet2!B25","v":"Pack of 10"},1,null,{"v":0,"d":"R 0.00"},null,{"v":0,"d":"R 0.00"},null,{"v":0,"d":"R 0.00"}]
[null,{"$f":"Sheet2!A26","v":" A4 PVS plastic sleeves 100 per pack"},{"$f":"Sheet2!B26","v":"Pack of 100"},1,null,{"v":0,"d":"R 0.00"},null,{"v":0,"d":"R 0.00"},null,{"v":0,"d":"R 0.00"}]
[null,{"$f":"Sheet2!A27","v":"PVC File dividers A-Z or 1-10"},{"$f":"Sheet2!B27","v":"Pack"},1,null,{"v":0,"d":"R 0.00"},null,{"v":0,"d":"R 0.00"},null,{"v":0,"d":"R 0.00"}]
[null,{"$f":"Sheet2!A28","v":"Lever arch file 70mm and 40mm polyprop"},{"$f":"Sheet2!B28","v":"Each"},1,null,{"v":0,"d":"R 0.00"},null,{"v":0,"d":"R 0.00"},null,{"v":0,"d":"R 0.00"}]
[null,{"$f":"Sheet2!A29","v":"Clear packaging tape "},{"$f":"Sheet2!B29","v":"Each"},1,null,{"v":0,"d":"R 0.00"},null,{"v":0,"d":"R 0.00"},null,{"v":0,"d":"R 0.00"}]
[null,{"$f":"Sheet2!A30","v":"Brown buffer tape to seal samples sen to lab"},{"$f":"Sheet2!B30","v":"Each"},1,null,{"v":0,"d":"R 0.00"},null,{"v":0,"d":"R 0.00"},null,{"v":0,"d":"R 0.00"}]
[null,{"$f":"Sheet2!A31","v":"3m heavy duty tape mounting"},{"$f":"Sheet2!B31","v":"Each"},1,null,{"v":0,"d":"R 0.00"},null,{"v":0,"d":"R 0.00"},null,{"v":0,"d":"R 0.00"}]
[null,{"$f":"Sheet2!A32","v":"Liquid to clean whiteboard"},{"$f":"Sheet2!B32","v":"Each"},1,null,{"v":0,"d":"R 0.00"},null,{"v":0,"d":"R 0.00"},null,{"v":0,"d":"R 0.00"}]
[null,{"$f":"Sheet2!A33","v":"Pouch for id cards"},{"$f":"Sheet2!B33","v":"237 ml each"},1,null,{"v":0,"d":"R 0.00"},null,{"v":0,"d":"R 0.00"},null,{"v":0,"d":"R 0.00"}]
[null,{"$f":"Sheet2!A34","v":"AAA duracell batteries"},{"$f":"Sheet2!B34","v":"Pack of 12"},1,null,{"v":0,"d":"R 0.00"},null,{"v":0,"d":"R 0.00"},null,{"v":0,"d":"R 0.00"}]
[null,{"$f":"Sheet2!A35","v":"AA duracel batteries"},{"$f":"Sheet2!B35","v":"Pack of 12"},1,null,{"v":0,"d":"R 0.00"},null,{"v":0,"d":"R 0.00"},null,{"v":0,"d":"R 0.00"}]
[null,{"$f":"Sheet2!A36","v":"File fasteners"},{"$f":"Sheet2!B36","v":"Pack of 50"},1,null,{"v":0,"d":"R 0.00"},null,{"v":0,"d":"R 0.00"},null,{"v":0,"d":"R 0.00"}]
[null,{"$f":"Sheet2!A37","v":"Elastic bands"},{"$f":"Sheet2!B37","v":"100g"},1,null,{"v":0,"d":"R 0.00"},null,{"v":0,"d":"R 0.00"},null,{"v":0,"d":"R 0.00"}]
[null,{"$f":"Sheet2!A38","v":"Finger cone various sizes"},{"$f":"Sheet2!B38","v":"Pack of 10"},1,null,{"v":0,"d":"R 0.00"},null,{"v":0,"d":"R 0.00"},null,{"v":0,"d":"R 0.00"}]
[null,{"$f":"Sheet2!A39","v":"Gel pen"},{"$f":"Sheet2!B39","v":"Box of 40"},1,null,{"v":0,"d":"R 0.00"},null,{"v":0,"d":"R 0.00"},null,{"v":0,"d":"R 0.00"}]
[null,{"$f":"Sheet2!A40","v":"Diaries A4 and A5 annual"},{"$f":"Sheet2!B40","v":"Each"},1,null,{"v":0,"d":"R 0.00"},null,{"v":0,"d":"R 0.00"},null,{"v":0,"d":"R 0.00"}]
[null,{"$f":"Sheet2!A41","v":"Masonite clip board"},{"$f":"Sheet2!B41","v":"Each"},1,null,{"v":0,"d":"R 0.00"},null,{"v":0,"d":"R 0.00"},null,{"v":0,"d":"R 0.00"}]
[null,{"$f":"Sheet2!A42","v":"Photocopy paper"},{"$f":"Sheet2!B42","v":"Box of 5 reams (500 sheets)"},1,null,{"v":0,"d":"R 0.00"},null,{"v":0,"d":"R 0.00"},null,{"v":0,"d":"R 0.00"}]
[null,{"$f":"Sheet2!A43","v":0},{"$f":"Sheet2!B43","v":0},1,null,{"v":0,"d":"R 0.00"},null,{"v":0,"d":"R 0.00"},null,{"v":0,"d":"R 0.00"}]
[null,{"$f":"Sheet2!A44","v":"Tippex"},{"$f":"Sheet2!B44","v":"Each"},1,null,{"v":0,"d":"R 0.00"},null,{"v":0,"d":"R 0.00"},null,{"v":0,"d":"R 0.00"}]
[null,{"$f":"Sheet2!A45","v":"Punch Large and small"},{"$f":"Sheet2!B45","v":"Each"},1,null,{"v":0,"d":"R 0.00"},null,{"v":0,"d":"R 0.00"},null,{"v":0,"d":"R 0.00"}]
[null,{"$f":"Sheet2!A46","v":"Large stapler"},{"$f":"Sheet2!B46","v":"Each"},1,null,{"v":0,"d":"R 0.00"},null,{"v":0,"d":"R 0.00"},null,{"v":0,"d":"R 0.00"}]
[null,{"$f":"Sheet2!A47","v":"Staples for large stapler"},{"$f":"Sheet2!B47","v":"Box"},1,null,{"v":0,"d":"R 0.00"},null,{"v":0,"d":"R 0.00"},null,{"v":0,"d":"R 0.00"}]
[null,{"$f":"Sheet2!A48","v":"Pen organizer  holders"},{"$f":"Sheet2!B48","v":"Each"},1,null,{"v":0,"d":"R 0.00"},null,{"v":0,"d":"R 0.00"},null,{"v":0,"d":"R 0.00"}]
[null,{"$f":"Sheet2!A49","v":"Optiplan Folder 440 H/W with flaps"},{"$f":"Sheet2!B49","v":"Pack"},1,null,{"v":0,"d":"R 0.00"},null,{"v":0,"d":"R 0.00"},null,{"v":0,"d":"R 0.00"}]
[null,{"$f":"Sheet2!A50","v":"Pushpin"},{"$f":"Sheet2!B50","v":"box"},1,null,{"v":0,"d":"R 0.00"},null,{"v":0,"d":"R 0.00"},null,{"v":0,"d":"R 0.00"}]
[null,{"$f":"Sheet2!A51","v":"Waste Paper bin-wire"},{"$f":"Sheet2!B51","v":"Each"},1,null,{"v":0,"d":"R 0.00"},null,{"v":0,"d":"R 0.00"},null,{"v":0,"d":"R 0.00"}]
[null,{"$f":"Sheet2!A52","v":"Notice Board"},{"$f":"Sheet2!B52","v":"Each"},1,null,{"v":0,"d":"R 0.00"},null,{"v":0,"d":"R 0.00"},null,{"v":0,"d":"R 0.00"}]
[null,{"$f":"Sheet2!A53","v":"Frames A4"},{"$f":"Sheet2!B53","v":"Each"},1,null,{"v":0,"d":"R 0.00"},null,{"v":0,"d":"R 0.00"},null,{"v":0,"d":"R 0.00"}]
[null,{"$f":"Sheet2!A54","v":"Sorter A-Z"},{"$f":"Sheet2!B54","v":"Each"},1,null,{"v":0,"d":"R 0.00"},null,{"v":0,"d":"R 0.00"},null,{"v":0,"d":"R 0.00"}]
[null,{"$f":"Sheet2!A55","v":"Optiplan Plastic container / holders for Files"},{"$f":"Sheet2!B55","v":"Each"},1,null,{"v":0,"d":"R 0.00"},null,{"v":0,"d":"R 0.00"},null,{"v":0,"d":"R 0.00"}]
[null,{"$f":"Sheet2!A56","v":"Brother barcoded labels"},{"$f":"Sheet2!B56","v":"Roll"},1,null,{"v":0,"d":"R 0.00"},null,{"v":0,"d":"R 0.00"},null,{"v":0,"d":"R 0.00"}]
[null,{"$f":"Sheet2!A57","v":"Small and large ink pads"},{"$f":"Sheet2!B57","v":"Each"},1,null,{"v":0,"d":"R 0.00"},null,{"v":0,"d":"R 0.00"},null,{"v":0,"d":"R 0.00"}]
[null,{"$f":"Sheet2!A58","v":"Selfinking stamps – date stamp"},{"$f":"Sheet2!B58","v":"each"},1,null,{"v":0,"d":"R 0.00"},null,{"v":0,"d":"R 0.00"},null,{"v":0,"d":"R 0.00"}]
[null,{"$f":"Sheet2!A59","v":"Selfinking stamps – passed for export stamp"},{"$f":"Sheet2!B59","v":"Each"},1,null,{"v":0,"d":"R 0.00"},null,{"v":0,"d":"R 0.00"},null,{"v":0,"d":"R 0.00"}]
[null,{"$f":"Sheet2!A60","v":"Selfinking stamps – reject stamp"},{"$f":"Sheet2!B60","v":"each"},1,null,{"v":0,"d":"R 0.00"},null,{"v":0,"d":"R 0.00"},null,{"v":0,"d":"R 0.00"}]
[null,{"$f":"Sheet2!A61","v":"Selfinking stamps – personnel nr stamp"},{"$f":"Sheet2!B61","v":"each"},1,null,{"v":0,"d":"R 0.00"},null,{"v":0,"d":"R 0.00"},null,{"v":0,"d":"R 0.00"}]
[null,{"$f":"Sheet2!A62","v":"Selfinking stamps"},{"$f":"Sheet2!B62","v":"each"},1,null,{"v":0,"d":"R 0.00"},null,{"v":0,"d":"R 0.00"},null,{"v":0,"d":"R 0.00"}]
[{"$nulls":5},{"$f":"SUM(F10:F71)","v":{"v":0,"d":"R 0.00"}},null,{"$f":"SUM(H10:H71)","v":{"v":0,"d":"R 0.00"}},null,{"$f":"SUM(J10:J71)","v":{"v":0,"d":"R 0.00"}}]
[]
[]
[]
[]
[null,"Offered Annual Rebate: "]
[null,"_____ % rebate on annual increase of R 100 000.00"]
[null,"_____ % rebate on annual increase of R 200 000.00"]
[null,"_____ % rebate on annual increase of R 300 000.00"]
[]
[null,"BIDDER’S NAME: _______________________________________________"]
[null,"AUTHORISED SIGNATORY: ______________________________________"]
[null,"DATE: _____________________"]